[Event "Early-Titled-Tuesday-Blitz-January-16-2024"]
[Site "Chess.com"]
[Date "2024.01.16"]
[Round "7"]
[White "sofaceindisguise"]
[Black "GroovyKettle"]
[Result "0-1"]
[WhiteElo "2691"]
[BlackElo "2947"]
[TimeControl "180+1"]
[EndTime "9:23:48 PST"]
[Termination "GroovyKettle won by resignation"]

1. d4 {[%clk 0:02:57.7]} 1... Nf6 {[%clk 0:02:58.5]} 2. c4 {[%clk 0:02:58.3]}
2... e6 {[%clk 0:02:57.1]} 3. Nc3 {[%clk 0:02:58.8]} 3... Bb4 {[%clk 0:02:56.1]}
4. e3 {[%clk 0:02:57.2]} 4... O-O {[%clk 0:02:52.6]} 5. Ne2 {[%clk 0:02:57.3]}
5... d5 {[%clk 0:02:52.2]} 6. a3 {[%clk 0:02:57]} 6... Be7 {[%clk 0:02:51.5]} 7.
c5 {[%clk 0:02:57.4]} 7... a5 {[%clk 0:02:50.5]} 8. Rb1 {[%clk 0:02:53.2]} 8...
Nbd7 {[%clk 0:02:45.5]} 9. Nf4 {[%clk 0:02:42.3]} 9... c6 {[%clk 0:02:44.9]} 10.
Nd3 {[%clk 0:02:39.7]} 10... b6 {[%clk 0:02:44.7]} 11. b4 {[%clk 0:02:39.6]}
11... Ba6 {[%clk 0:02:43.1]} 12. Be2 {[%clk 0:02:37]} 12... Bc4 {[%clk
0:02:42.6]} 13. O-O {[%clk 0:02:36.5]} 13... axb4 {[%clk 0:02:37.8]} 14. axb4
{[%clk 0:02:37.3]} 14... Qc7 {[%clk 0:02:29]} 15. f4 {[%clk 0:02:37.5]} 15...
Ra7 {[%clk 0:02:26.1]} 16. Ne5 {[%clk 0:02:23.6]} 16... Bxe2 {[%clk 0:02:23.2]}
17. Qxe2 {[%clk 0:02:23.3]} 17... Nxe5 {[%clk 0:02:09.6]} 18. fxe5 {[%clk
0:02:20.2]} 18... Nd7 {[%clk 0:02:10.5]} 19. e4 {[%clk 0:02:15.4]} 19... bxc5
{[%clk 0:02:09.5]} 20. bxc5 {[%clk 0:02:15.1]} 20... Re8 {[%clk 0:01:47.2]} 21.
exd5 {[%clk 0:02:07.6]} 21... exd5 {[%clk 0:01:47.4]} 22. Bf4 {[%clk 0:02:01]}
22... Qc8 {[%clk 0:01:41.7]} 23. Rf3 {[%clk 0:01:59.8]} 23... Nf8 {[%clk
0:01:41.1]} 24. Rbf1 {[%clk 0:01:54.6]} 24... Ne6 {[%clk 0:01:38.8]} 25. Be3
{[%clk 0:01:55.3]} 25... Rf8 {[%clk 0:01:39]} 26. Qf2 {[%clk 0:01:49.8]} 26...
Qe8 {[%clk 0:01:37.7]} 27. Qg3 {[%clk 0:01:44.5]} 27... Ra3 {[%clk 0:01:32.6]}
28. Ne2 {[%clk 0:01:41.4]} 28... Qd7 {[%clk 0:01:03.4]} 29. Nf4 {[%clk
0:01:37.7]} 29... Nxf4 {[%clk 0:01:03.3]} 30. Bxf4 {[%clk 0:01:36.4]} 30... Rxf3
{[%clk 0:01:02.7]} 31. Rxf3 {[%clk 0:01:37]} 31... Qe6 {[%clk 0:01:00.5]} 32. h3
{[%clk 0:01:36.8]} 32... Rb8 {[%clk 0:00:58.1]} 33. Rb3 {[%clk 0:01:35.8]} 33...
Rxb3 {[%clk 0:00:56.9]} 34. Qxb3 {[%clk 0:01:36.7]} 34... h6 {[%clk 0:00:57.7]}
35. Qd3 {[%clk 0:01:35.4]} 35... g5 {[%clk 0:00:52.4]} 36. Bg3 {[%clk
0:01:34.6]} 36... Kg7 {[%clk 0:00:53]} 37. Kh2 {[%clk 0:01:31.4]} 37... Qg6
{[%clk 0:00:50.3]} 38. Qa6 {[%clk 0:01:26.3]} 38... h5 {[%clk 0:00:49.5]} 39.
Qb7 {[%clk 0:01:24.8]} 39... Qe6 {[%clk 0:00:47.9]} 40. Qb1 {[%clk 0:01:20.5]}
40... h4 {[%clk 0:00:45.3]} 41. Bf2 {[%clk 0:01:20.7]} 41... g4 {[%clk
0:00:42.3]} 42. hxg4 {[%clk 0:01:19.6]} 42... Qxg4 {[%clk 0:00:43.2]} 43. Qd3
{[%clk 0:01:19.2]} 43... Bg5 {[%clk 0:00:41.8]} 44. Kg1 {[%clk 0:01:17.8]} 44...
Bf4 {[%clk 0:00:38]} 45. Kf1 {[%clk 0:01:17.9]} 45... f6 {[%clk 0:00:31.5]} 46.
exf6+ {[%clk 0:01:17.7]} 46... Kxf6 {[%clk 0:00:32.4]} 47. Qe2 {[%clk
0:01:06.3]} 47... Kf5 {[%clk 0:00:20.4]} 48. Qd3+ {[%clk 0:01:03.9]} 48... Kg5
{[%clk 0:00:20.7]} 49. Kg1 {[%clk 0:00:54.4]} 49... Bg3 {[%clk 0:00:15.3]} 50.
Qe3+ {[%clk 0:00:52.8]} 50... Kf5 {[%clk 0:00:14.6]} 51. Qd3+ {[%clk 0:00:52.1]}
51... Qe4 {[%clk 0:00:14.3]} 52. Qf1 {[%clk 0:00:45.1]} 52... Kg4 {[%clk
0:00:14.4]} 53. Qd1+ {[%clk 0:00:44.4]} 53... Kg5 {[%clk 0:00:14.8]} 54. Qd2+
{[%clk 0:00:41.4]} 54... Kf5 {[%clk 0:00:15]} 55. Qd1 {[%clk 0:00:33.2]} 55...
Qf4 {[%clk 0:00:14.7]} 56. Qd3+ {[%clk 0:00:29.8]} 56... Kf6 {[%clk 0:00:13.1]}
57. Be3 {[%clk 0:00:26]} 57... Qf5 {[%clk 0:00:11.8]} 58. Qd1 {[%clk 0:00:20.2]}
58... Qe4 {[%clk 0:00:11.5]} 59. Qf3+ {[%clk 0:00:19]} 59... Qxf3 {[%clk
0:00:10.7]} 60. gxf3 {[%clk 0:00:19.9]} 60... h3 {[%clk 0:00:10.4]} 61. Kh1
{[%clk 0:00:19]} 61... Kf5 {[%clk 0:00:10.5]} 62. Kg1 {[%clk 0:00:19.5]} 62...
Bf4 {[%clk 0:00:07.8]} 63. Bf2 {[%clk 0:00:19.9]} 63... Ke6 {[%clk 0:00:07.7]}
64. Kh1 {[%clk 0:00:20.1]} 64... Kd7 {[%clk 0:00:08]} 65. Kg1 {[%clk 0:00:20.8]}
65... Kc8 {[%clk 0:00:08.6]} 66. Kh1 {[%clk 0:00:20.8]} 66... Kb7 {[%clk
0:00:09.2]} 67. Kg1 {[%clk 0:00:20.4]} 67... Ka6 {[%clk 0:00:09.8]} 68. Bh4
{[%clk 0:00:20.7]} 68... Kb5 {[%clk 0:00:09.6]} 69. Bf6 {[%clk 0:00:20.7]} 69...
Kc4 {[%clk 0:00:10.1]} 70. Be5 {[%clk 0:00:21.2]} 70... Bxe5 {[%clk 0:00:04.1]}
71. dxe5 {[%clk 0:00:21.4]} 71... Kxc5 {[%clk 0:00:05]} 72. f4 {[%clk
0:00:21.2]} 72... d4 {[%clk 0:00:05.7]} 73. e6 {[%clk 0:00:19.9]} 73... Kd6
{[%clk 0:00:05.9]} 74. f5 {[%clk 0:00:20.8]} 74... d3 {[%clk 0:00:06.5]} 75. Kf2
{[%clk 0:00:20.3]} 75... d2 {[%clk 0:00:06.9]} 0-1

[Event "Early-Titled-Tuesday-Blitz-January-16-2024"]
[Site "Chess.com"]
[Date "2024.01.16"]
[Round "7"]
[White "KuzubovYuriy"]
[Black "Anton_Demchenko"]
[Result "0-1"]
[WhiteElo "2887"]
[BlackElo "2988"]
[TimeControl "180+1"]
[EndTime "9:23:49 PST"]
[Termination "Anton_Demchenko won on time"]

1. e4 {[%clk 0:03:00.9]} 1... e5 {[%clk 0:02:59.2]} 2. Nf3 {[%clk 0:03:01.2]}
2... Nc6 {[%clk 0:02:59.6]} 3. Bb5 {[%clk 0:02:59.9]} 3... a6 {[%clk 0:02:59.6]}
4. Ba4 {[%clk 0:03:00.3]} 4... Nge7 {[%clk 0:03:00]} 5. c3 {[%clk 0:02:58.8]}
5... Ng6 {[%clk 0:03:00.4]} 6. d4 {[%clk 0:02:57]} 6... exd4 {[%clk 0:03:01.3]}
7. cxd4 {[%clk 0:02:56.9]} 7... Bb4+ {[%clk 0:03:02]} 8. Bd2 {[%clk 0:02:54.7]}
8... O-O {[%clk 0:03:01.2]} 9. O-O {[%clk 0:02:52.6]} 9... Bxd2 {[%clk
0:03:00.7]} 10. Qxd2 {[%clk 0:02:52.9]} 10... d5 {[%clk 0:02:59.3]} 11. e5
{[%clk 0:02:33.8]} 11... Bg4 {[%clk 0:02:57.5]} 12. Ne1 {[%clk 0:02:22.6]} 12...
f6 {[%clk 0:02:53.5]} 13. f3 {[%clk 0:02:15.6]} 13... Bd7 {[%clk 0:02:50.1]} 14.
Bxc6 {[%clk 0:02:12.4]} 14... Bxc6 {[%clk 0:02:48.6]} 15. exf6 {[%clk
0:02:11.9]} 15... Qxf6 {[%clk 0:02:47.6]} 16. Nc3 {[%clk 0:02:10.8]} 16... Nf4
{[%clk 0:02:19.8]} 17. Nc2 {[%clk 0:02:09.6]} 17... Bb5 {[%clk 0:02:07.9]} 18.
Rfe1 {[%clk 0:01:51.1]} 18... Rad8 {[%clk 0:02:01.8]} 19. Ne3 {[%clk 0:01:41.4]}
19... Nd3 {[%clk 0:01:43]} 20. Red1 {[%clk 0:01:36.5]} 20... Nf4 {[%clk
0:01:30.2]} 21. Ng4 {[%clk 0:01:34.1]} 21... Qf5 {[%clk 0:01:25.8]} 22. Re1
{[%clk 0:01:20.2]} 22... h5 {[%clk 0:01:11.4]} 23. Re5 {[%clk 0:01:04.8]} 23...
Qg6 {[%clk 0:01:00.4]} 24. Ne3 {[%clk 0:01:02.7]} 24... Bc6 {[%clk 0:00:46.3]}
25. Rd1 {[%clk 0:00:33.6]} 25... Rd6 {[%clk 0:00:45.1]} 26. g3 {[%clk 0:00:31]}
26... h4 {[%clk 0:00:35.9]} 27. Ng4 {[%clk 0:00:28.8]} 27... hxg3 {[%clk
0:00:36.4]} 28. hxg3 {[%clk 0:00:29.3]} 28... Nh5 {[%clk 0:00:36.4]} 29. Kg2
{[%clk 0:00:25.7]} 29... Nf6 {[%clk 0:00:36.5]} 30. Rg5 {[%clk 0:00:23.7]} 30...
Qe8 {[%clk 0:00:34.6]} 31. Nh6+ {[%clk 0:00:22.4]} 31... Kh8 {[%clk 0:00:28.2]}
32. Nf5 {[%clk 0:00:20.7]} 32... Rd7 {[%clk 0:00:27.6]} 33. Rh1+ {[%clk
0:00:20.5]} 33... Nh7 {[%clk 0:00:27]} 34. Ne3 {[%clk 0:00:16.8]} 34... Kg8
{[%clk 0:00:21.3]} 35. Re5 {[%clk 0:00:16.1]} 35... Re7 {[%clk 0:00:20.2]} 36.
Ng4 {[%clk 0:00:16.8]} 36... Nf6 {[%clk 0:00:16.7]} 37. Nxf6+ {[%clk 0:00:16.1]}
37... Rxf6 {[%clk 0:00:17.2]} 38. Rhe1 {[%clk 0:00:14.2]} 38... Rxe5 {[%clk
0:00:17.1]} 39. Rxe5 {[%clk 0:00:15.1]} 39... Qf7 {[%clk 0:00:17.7]} 40. Qe3
{[%clk 0:00:15.1]} 40... Kf8 {[%clk 0:00:13.1]} 41. Ne2 {[%clk 0:00:14.8]} 41...
Rf5 {[%clk 0:00:07.2]} 42. Nf4 {[%clk 0:00:13.1]} 42... Rxe5 {[%clk 0:00:07.8]}
43. Qxe5 {[%clk 0:00:13.3]} 43... Kg8 {[%clk 0:00:02.1]} 44. a3 {[%clk
0:00:12.6]} 44... a5 {[%clk 0:00:01.9]} 45. g4 {[%clk 0:00:12.9]} 45... a4
{[%clk 0:00:02.3]} 46. Kg3 {[%clk 0:00:13.3]} 46... Kf8 {[%clk 0:00:01.3]} 47.
g5 {[%clk 0:00:13.2]} 47... Kg8 {[%clk 0:00:01.5]} 48. g6 {[%clk 0:00:13.2]}
48... Qd7 {[%clk 0:00:02.2]} 49. Qe6+ {[%clk 0:00:10.2]} 49... Kf8 {[%clk
0:00:01.7]} 50. Kg4 {[%clk 0:00:08.3]} 50... Qxe6+ {[%clk 0:00:01.1]} 51. Nxe6+
{[%clk 0:00:08.5]} 51... Ke7 {[%clk 0:00:01.4]} 52. Nxg7 {[%clk 0:00:06.8]}
52... Kf6 {[%clk 0:00:02.1]} 53. Nh5+ {[%clk 0:00:05.8]} 53... Kxg6 {[%clk
0:00:02.8]} 54. Nf4+ {[%clk 0:00:05.7]} 54... Kf6 {[%clk 0:00:03.3]} 55. Nd3
{[%clk 0:00:05.8]} 55... b6 {[%clk 0:00:03.5]} 56. Kf4 {[%clk 0:00:05.5]} 56...
Bb7 {[%clk 0:00:03.9]} 57. Ke3 {[%clk 0:00:05.1]} 57... Ke6 {[%clk 0:00:04.6]}
58. Kf4 {[%clk 0:00:05.2]} 58... Kd6 {[%clk 0:00:05.3]} 59. Ke3 {[%clk 0:00:04]}
59... c5 {[%clk 0:00:06]} 60. f4 {[%clk 0:00:04.3]} 60... Bc8 {[%clk 0:00:06.2]}
61. Ne5 {[%clk 0:00:03.6]} 61... Bf5 {[%clk 0:00:06.9]} 62. Nf3 {[%clk
0:00:03.5]} 62... Be4 {[%clk 0:00:06.6]} 63. Ng5 {[%clk 0:00:03.6]} 63... Bf5
{[%clk 0:00:06.4]} 64. Nf7+ {[%clk 0:00:03.9]} 64... Ke7 {[%clk 0:00:05.7]} 65.
Ne5 {[%clk 0:00:02.5]} 65... Kd6 {[%clk 0:00:05.1]} 66. Nf3 {[%clk 0:00:02.9]}
66... Bb1 {[%clk 0:00:05]} 67. Nd2 {[%clk 0:00:01.2]} 67... Bc2 {[%clk
0:00:04.8]} 68. Nf1 {[%clk 0:00:01.4]} 68... Bb1 {[%clk 0:00:04.6]} 69. Ng3
{[%clk 0:00:01.7]} 69... Ke6 {[%clk 0:00:04.4]} 0-1

[Event "Early-Titled-Tuesday-Blitz-January-16-2024"]
[Site "Chess.com"]
[Date "2024.01.16"]
[Round "7"]
[White "rasmussvane"]
[Black "blitzking1729"]
[Result "1-0"]
[WhiteElo "3001"]
[BlackElo "2695"]
[TimeControl "180+1"]
[EndTime "9:23:53 PST"]
[Termination "rasmussvane won on time"]

1. Nf3 {[%clk 0:03:00.9]} 1... g6 {[%clk 0:02:50]} 2. e4 {[%clk 0:02:58.7]} 2...
Bg7 {[%clk 0:02:47.4]} 3. d4 {[%clk 0:02:58.5]} 3... d6 {[%clk 0:02:47.8]} 4.
Bd3 {[%clk 0:02:57.8]} 4... Nf6 {[%clk 0:02:48]} 5. O-O {[%clk 0:02:57.5]} 5...
O-O {[%clk 0:02:47.7]} 6. h3 {[%clk 0:02:57.3]} 6... Nc6 {[%clk 0:02:46.2]} 7.
d5 {[%clk 0:02:55]} 7... Nb4 {[%clk 0:02:45.8]} 8. Re1 {[%clk 0:02:53.5]} 8...
Nxd3 {[%clk 0:02:44.1]} 9. Qxd3 {[%clk 0:02:53.7]} 9... e5 {[%clk 0:02:43.4]}
10. dxe6 {[%clk 0:02:48.3]} 10... Bxe6 {[%clk 0:02:43.2]} 11. Nc3 {[%clk
0:02:43.7]} 11... Re8 {[%clk 0:02:42.9]} 12. Be3 {[%clk 0:02:38.5]} 12... h6
{[%clk 0:02:41.6]} 13. Rad1 {[%clk 0:02:38.5]} 13... Qc8 {[%clk 0:02:40.8]} 14.
Bd4 {[%clk 0:02:35.1]} 14... Kh7 {[%clk 0:02:37.8]} 15. a3 {[%clk 0:02:29.9]}
15... a6 {[%clk 0:02:37.3]} 16. Ne2 {[%clk 0:02:23.7]} 16... b5 {[%clk 0:02:16]}
17. b3 {[%clk 0:01:55.9]} 17... Rd8 {[%clk 0:01:59.8]} 18. Nf4 {[%clk
0:01:43.9]} 18... c5 {[%clk 0:01:37.3]} 19. Bxf6 {[%clk 0:01:33]} 19... Bxf6
{[%clk 0:01:35.2]} 20. Nd5 {[%clk 0:01:33.3]} 20... Bxd5 {[%clk 0:01:32.3]} 21.
Qxd5 {[%clk 0:01:34.2]} 21... Ra7 {[%clk 0:01:20.5]} 22. c4 {[%clk 0:01:23]}
22... bxc4 {[%clk 0:01:18.8]} 23. Qxc4 {[%clk 0:01:23.2]} 23... Kg7 {[%clk
0:01:12.3]} 24. Rd3 {[%clk 0:01:21.5]} 24... Re7 {[%clk 0:00:41.7]} 25. Kh2
{[%clk 0:01:04.1]} 25... Qc7 {[%clk 0:00:24.9]} 26. g3 {[%clk 0:01:03.7]} 26...
Rde8 {[%clk 0:00:23.4]} 27. Qxa6 {[%clk 0:00:56.2]} 27... Rxe4 {[%clk
0:00:22.9]} 28. Rxe4 {[%clk 0:00:57.1]} 28... Rxe4 {[%clk 0:00:22.8]} 29. Rxd6
{[%clk 0:00:49]} 29... Qe7 {[%clk 0:00:18.6]} 30. Rd2 {[%clk 0:00:44.7]} 30...
Bc3 {[%clk 0:00:16.2]} 31. Rc2 {[%clk 0:00:41.8]} 31... Bd4 {[%clk 0:00:16.3]}
32. Qd3 {[%clk 0:00:41.1]} 32... Bf6 {[%clk 0:00:15]} 33. Kg2 {[%clk 0:00:40.6]}
33... Re6 {[%clk 0:00:14.9]} 34. Qd5 {[%clk 0:00:38.8]} 34... c4 {[%clk
0:00:13]} 35. Rxc4 {[%clk 0:00:36]} 35... Qxa3 {[%clk 0:00:13.4]} 36. Rc7 {[%clk
0:00:36.3]} 36... Be7 {[%clk 0:00:08.5]} 37. Nd4 {[%clk 0:00:31.8]} 37... Re1
{[%clk 0:00:07.5]} 38. Nc6 {[%clk 0:00:29.6]} 38... Qd6 {[%clk 0:00:05.1]} 39.
Qxd6 {[%clk 0:00:18.5]} 39... Bxd6 {[%clk 0:00:06]} 40. Rd7 {[%clk 0:00:19.2]}
40... Re6 {[%clk 0:00:06]} 41. Nd4 {[%clk 0:00:17.9]} 41... Rf6 {[%clk
0:00:06.4]} 42. Rb7 {[%clk 0:00:16.7]} 42... Kf8 {[%clk 0:00:06.6]} 43. b4
{[%clk 0:00:16]} 43... Be5 {[%clk 0:00:06.9]} 44. Nf3 {[%clk 0:00:16.2]} 44...
Bc3 {[%clk 0:00:07.3]} 45. b5 {[%clk 0:00:16.4]} 45... Ba5 {[%clk 0:00:08]} 46.
g4 {[%clk 0:00:14.8]} 46... Bb6 {[%clk 0:00:08.3]} 47. Rd7 {[%clk 0:00:11.8]}
47... g5 {[%clk 0:00:08.3]} 48. Rd5 {[%clk 0:00:11.8]} 48... Ke7 {[%clk
0:00:07.8]} 49. Nd4 {[%clk 0:00:12]} 49... Bxd4 {[%clk 0:00:06.2]} 50. Rxd4
{[%clk 0:00:12.9]} 50... Rb6 {[%clk 0:00:05.8]} 51. Rb4 {[%clk 0:00:12.7]} 51...
Kd6 {[%clk 0:00:05.8]} 52. Kf3 {[%clk 0:00:13.1]} 52... Kc5 {[%clk 0:00:05.5]}
53. Rb2 {[%clk 0:00:13.7]} 53... Kd4 {[%clk 0:00:04.8]} 54. Rb1 {[%clk
0:00:12.2]} 54... Rf6+ {[%clk 0:00:04.2]} 55. Ke2 {[%clk 0:00:12.6]} 55... Rb6
{[%clk 0:00:04.7]} 56. Rb2 {[%clk 0:00:10.2]} 56... f5 {[%clk 0:00:04.4]} 57.
gxf5 {[%clk 0:00:09.7]} 57... Ke5 {[%clk 0:00:04.7]} 58. Kd3 {[%clk 0:00:10.2]}
58... Kxf5 {[%clk 0:00:05.4]} 59. Kc4 {[%clk 0:00:10.9]} 59... g4 {[%clk
0:00:05.5]} 60. hxg4+ {[%clk 0:00:10]} 60... Kxg4 {[%clk 0:00:06.4]} 61. Kc5
{[%clk 0:00:10.7]} 61... Rb8 {[%clk 0:00:07]} 62. b6 {[%clk 0:00:10.9]} 62... h5
{[%clk 0:00:07.7]} 63. b7 {[%clk 0:00:06.4]} 63... h4 {[%clk 0:00:08]} 64. Kc6
{[%clk 0:00:06.6]} 64... h3 {[%clk 0:00:08.4]} 65. Rb4+ {[%clk 0:00:04.8]} 65...
Kf3 {[%clk 0:00:07.6]} 66. Rh4 {[%clk 0:00:04.9]} 66... Kg2 {[%clk 0:00:04.5]}
67. Kc7 {[%clk 0:00:05]} 1-0

[Event "Early-Titled-Tuesday-Blitz-January-16-2024"]
[Site "Chess.com"]
[Date "2024.01.16"]
[Round "7"]
[White "Millerkallpa"]
[Black "wild3000"]
[Result "1-0"]
[WhiteElo "2149"]
[BlackElo "2375"]
[TimeControl "180+1"]
[EndTime "9:23:58 PST"]
[Termination "Millerkallpa won by checkmate"]

1. e4 {[%clk 0:02:47.7]} 1... e6 {[%clk 0:02:41.8]} 2. d4 {[%clk 0:02:46.9]}
2... d5 {[%clk 0:02:42.1]} 3. e5 {[%clk 0:02:47.5]} 3... c5 {[%clk 0:02:42.4]}
4. c3 {[%clk 0:02:48.2]} 4... Nc6 {[%clk 0:02:43.2]} 5. Nf3 {[%clk 0:02:47.6]}
5... Nge7 {[%clk 0:02:44.1]} 6. Bd3 {[%clk 0:02:45.5]} 6... Nf5 {[%clk
0:02:44.4]} 7. Bxf5 {[%clk 0:02:44.2]} 7... exf5 {[%clk 0:02:44.7]} 8. O-O
{[%clk 0:02:44.6]} 8... Be6 {[%clk 0:02:45.6]} 9. a3 {[%clk 0:02:41.2]} 9... a5
{[%clk 0:02:45.4]} 10. Re1 {[%clk 0:02:31.8]} 10... Be7 {[%clk 0:02:45.4]} 11.
dxc5 {[%clk 0:02:31.7]} 11... Bxc5 {[%clk 0:02:45]} 12. Nd4 {[%clk 0:02:32.4]}
12... O-O {[%clk 0:02:44.3]} 13. Qd3 {[%clk 0:02:22.2]} 13... Qh4 {[%clk
0:02:42]} 14. g3 {[%clk 0:02:14.4]} 14... Qh3 {[%clk 0:02:36.1]} 15. Nd2 {[%clk
0:02:06.3]} 15... f4 {[%clk 0:02:30.2]} 16. N2f3 {[%clk 0:02:02.6]} 16... fxg3
{[%clk 0:02:25.4]} 17. hxg3 {[%clk 0:02:03.5]} 17... h6 {[%clk 0:02:20.5]} 18.
Be3 {[%clk 0:01:45.2]} 18... Nxd4 {[%clk 0:02:17.5]} 19. Bxd4 {[%clk 0:01:41.4]}
19... Be7 {[%clk 0:02:01.1]} 20. Qb5 {[%clk 0:01:13.7]} 20... Rfb8 {[%clk
0:01:52.8]} 21. Bc5 {[%clk 0:01:11.7]} 21... Bg5 {[%clk 0:01:52.2]} 22. Be3
{[%clk 0:01:06]} 22... Bxe3 {[%clk 0:01:41.6]} 23. Rxe3 {[%clk 0:01:06.9]} 23...
a4 {[%clk 0:01:35.5]} 24. Nd4 {[%clk 0:00:59.8]} 24... Bg4 {[%clk 0:01:25.4]}
25. Rae1 {[%clk 0:00:53.5]} 25... Rd8 {[%clk 0:01:24.2]} 26. e6 {[%clk
0:00:48.4]} 26... fxe6 {[%clk 0:01:24.3]} 27. Nxe6 {[%clk 0:00:48.9]} 27... Bxe6
{[%clk 0:01:06.4]} 28. Rxe6 {[%clk 0:00:49.8]} 28... d4 {[%clk 0:00:54.5]} 29.
Re8+ {[%clk 0:00:49.1]} 29... Rxe8 {[%clk 0:00:49.1]} 30. Rxe8+ {[%clk 0:00:50]}
30... Rxe8 {[%clk 0:00:49.6]} 31. Qxe8+ {[%clk 0:00:49.8]} 31... Kh7 {[%clk
0:00:50.5]} 32. Qe4+ {[%clk 0:00:49.6]} 32... Kg8 {[%clk 0:00:49.8]} 33. Qxd4
{[%clk 0:00:47.2]} 33... b5 {[%clk 0:00:41.3]} 34. Qd5+ {[%clk 0:00:45.6]} 34...
Kh7 {[%clk 0:00:38.9]} 35. Qxb5 {[%clk 0:00:45.2]} 35... Qg4 {[%clk 0:00:38.8]}
36. Qd3+ {[%clk 0:00:42.3]} 36... g6 {[%clk 0:00:36.8]} 37. Qd4 {[%clk 0:00:39]}
37... Qe2 {[%clk 0:00:32.8]} 38. Qd7+ {[%clk 0:00:29.3]} 38... Kg8 {[%clk
0:00:30.4]} 39. Qd8+ {[%clk 0:00:28.5]} 39... Kg7 {[%clk 0:00:29.6]} 40. Qd7+
{[%clk 0:00:29.4]} 40... Kg8 {[%clk 0:00:27.9]} 41. Qxa4 {[%clk 0:00:29.7]}
41... Qxb2 {[%clk 0:00:26.7]} 42. Qe8+ {[%clk 0:00:26.4]} 42... Kg7 {[%clk
0:00:25.9]} 43. Qe7+ {[%clk 0:00:27.3]} 43... Kg8 {[%clk 0:00:24.6]} 44. Qb4
{[%clk 0:00:27.8]} 44... Qc1+ {[%clk 0:00:19.7]} 45. Kh2 {[%clk 0:00:26.2]}
45... Qe1 {[%clk 0:00:14.7]} 46. Qb8+ {[%clk 0:00:24.3]} 46... Kh7 {[%clk
0:00:13.3]} 47. Qc7+ {[%clk 0:00:23.9]} 47... Kg8 {[%clk 0:00:13.4]} 48. Qd8+
{[%clk 0:00:23.8]} 48... Kg7 {[%clk 0:00:13.5]} 49. Qd4+ {[%clk 0:00:24]} 49...
Kh7 {[%clk 0:00:11.8]} 50. a4 {[%clk 0:00:24.6]} 50... Qa1 {[%clk 0:00:09.7]}
51. Qd7+ {[%clk 0:00:22.5]} 51... Kg8 {[%clk 0:00:09.9]} 52. Qe8+ {[%clk
0:00:22.8]} 52... Kg7 {[%clk 0:00:09.9]} 53. Qe7+ {[%clk 0:00:23.7]} 53... Kg8
{[%clk 0:00:10]} 54. Qe6+ {[%clk 0:00:16.9]} 54... Kg7 {[%clk 0:00:10]} 55. Qd7+
{[%clk 0:00:14.5]} 55... Kg8 {[%clk 0:00:09.7]} 56. Qd4 {[%clk 0:00:14.6]} 56...
Qa2 {[%clk 0:00:07.5]} 57. Kg2 {[%clk 0:00:11.6]} 57... h5 {[%clk 0:00:07.6]}
58. Qd8+ {[%clk 0:00:08.1]} 58... Kg7 {[%clk 0:00:07.6]} 59. Qc7+ {[%clk
0:00:08.9]} 59... Kh6 {[%clk 0:00:07.2]} 60. a5 {[%clk 0:00:06.3]} 60... Qd5+
{[%clk 0:00:07]} 61. Kh2 {[%clk 0:00:06.4]} 61... Qd2 {[%clk 0:00:03.3]} 62.
Qf4+ {[%clk 0:00:06.5]} 62... Qxf4 {[%clk 0:00:02.1]} 63. gxf4 {[%clk
0:00:07.4]} 63... g5 {[%clk 0:00:01.6]} 64. a6 {[%clk 0:00:07.4]} 64... g4
{[%clk 0:00:01.7]} 65. a7 {[%clk 0:00:07.8]} 65... Kg6 {[%clk 0:00:02.6]} 66.
a8=Q {[%clk 0:00:07.7]} 66... h4 {[%clk 0:00:03.5]} 67. Qc6+ {[%clk 0:00:07]}
67... Kh5 {[%clk 0:00:04.4]} 68. Qd5+ {[%clk 0:00:06.7]} 68... Kg6 {[%clk
0:00:04.6]} 69. Qg5+ {[%clk 0:00:07.6]} 69... Kh7 {[%clk 0:00:05]} 70. Qxg4
{[%clk 0:00:08.2]} 70... h3 {[%clk 0:00:05.7]} 71. Kxh3 {[%clk 0:00:07.4]} 71...
Kh6 {[%clk 0:00:06.6]} 72. f5 {[%clk 0:00:07.1]} 72... Kh7 {[%clk 0:00:07.3]}
73. f6 {[%clk 0:00:07.6]} 73... Kh8 {[%clk 0:00:08.2]} 74. Qg7# {[%clk
0:00:06.8]} 1-0